Cogmind - Beta 16.1 @@@ ROGUE MODE // 2026.04.12 @ 19:29:50 Player: Ammie Result: Destroyed by Y-45 Defender with Beam Rifle Performance ------------- Evolutions (1) 500 Regions Visited (3) 600 Robots Destroyed (51) 255 Value Destroyed (1033) 1033 Prototype IDs (2) 40 Alien Tech Used (0) 0 Bonus (0) 0 TOTAL SCORE: 2428 Bonus ------- None Cogmind --------- Core Integrity 0/400 Matter 300/300 Energy 100/100 System Corruption 0% Temperature Cool (9) Movement Core (400) Ox7 Location -9/Materials Parts ------- > --- POWER (1) -------- (None) > --- PROPULSION (3) --- (None) > --- UTILITY (3) ------ Large Storage Unit Machine Analyzer > --- WEAPON (2) ------- Scythe > --- INVENTORY (15) --- Light Treads Improved Flight Unit Small Storage Unit Medium Storage Unit Improved Targeting Computer Backup Plating III Light Armor Plating Sensor Drone Bay Improved Light Cannon Improved Light Cannon Improved Light Cannon Mini Grenade Launcher Peak State ------------ > --- POWER ------------ Light Angular Momentum Engine > --- PROPULSION ------- Light Treads Light Treads Light Treads > --- UTILITY ---------- Large Storage Unit Machine Analyzer Terrain Scanner > --- WEAPON ----------- Improved Light Cannon Scythe > --- INVENTORY -------- Ion Engine Light Treads Light Treads Light Treads Light Treads Improved Flight Unit Small Storage Unit Medium Storage Unit Improved Targeting Computer Backup Plating III Light Armor Plating Sensor Drone Bay Improved Light Cannon Improved Light Cannon Improved Light Cannon [Rating: 21] Favorites ----------- Power Light Ion Engine Engine Light Ion Engine Propulsion Light Treads Treads Light Treads Flight Unit Improved Flight Unit Utility Large Storage Unit Device Terrain Scanner Storage Large Storage Unit Processor Machine Analyzer Protection Light Armor Plating Weapon Improved Light Cannon Energy Gun Medium Laser Energy Cannon Beam Cannon Ballistic Gun Improved Assault Rifle Ballistic Cannon Improved Light Cannon Slashing Weapon Scythe Build | -11 -10 -10 -9 ------- Run | Yrd Mat Min Mat Slots Evolved 2 | . . . 2 Power . | . . . . Propulsion 1 | . . . 1 Utility 1 | . . . 1 Weapon . | . . . . Parts Attached 32 | 7 13 2 10 Power 6 | 1 2 1 2 Engine 6 | 1 2 1 2 Core . | . . . . Reactor . | . . . . Propulsion 10 | 2 3 . 5 Treads 9 | 2 3 . 4 Leg . | . . . . Wheel . | . . . . Hover . | . . . . Flight 1 | . . . 1 Utility 7 | 2 4 . 1 Device 2 | 1 . . 1 Storage 3 | 1 2 . . Processor 1 | . 1 . . Hackware . | . . . . Protection 1 | . 1 . . Artifact . | . . . . Weapon 9 | 2 4 1 2 Energy Gun 3 | 2 1 . . Energy Cannon 1 | . 1 . . Ballistic Gun 1 | . . . 1 Ballistic Cannon 3 | . 2 . 1 Launcher . | . . . . Special Weapon . | . . . . Impact Weapon . | . . . . Slashing Weapon 1 | . . 1 . Piercing Weapon . | . . . . Special Melee Weapon . | . . . . Unidentified Prototypes 2 | . . . 2 Parts Lost 14 | . 3 . 11 Power 3 | . 1 . 2 Propulsion 7 | . . . 7 Utility 2 | . 1 . 1 Weapon 2 | . 1 . 1 Highest Loss Streak 5 | . 2 . 5 To Critical Strikes 1 | . . . 1 Average Backups 11 | 1 8 14 14 Power . | . . 1 . Propulsion 2 | . 1 3 3 Utility 5 | . 4 6 6 Weapon 2 | . 1 3 3 Tool/Special . | . . . . Unused Backups 6 | . . 1 5 Power . | . . . . Propulsion . | . . . . Utility 3 | . . . 3 Weapon 3 | . . 1 2 Tool/Special . | . . . . Average Slot Usage (%) 98 | . 99 100 95 Engine 13 | . 13 14 10 Treads 28 | . 27 28 31 Device 2 | . . . 10 Storage 13 | . 14 14 11 Processor 9 | . 6 14 11 Protection 2 | . 6 . . Energy Gun 3 | . 7 . . Ballistic Cannon 16 | . 18 18 9 Slashing Weapon 5 | . . 9 11 Peak Build Rating 21 | 7 12 14 21 Average Rating 12 | 4 10 13 17 On Entrance 8 | . 7 12 14 Avg Prop Armor Cover (%) 14 | . . 11 18 Naked Turns . | . . . . Heaviest Build 36 | 13 34 31 36 Greatest Support 60 | 40 40 40 60 Greatest Overweight (x) 9 | . . 1 9 Average Overweight (x) . | . . . . Largest Inventory Capacity 15 | 8 15 15 15 Average Capacity 14 | 7 13 15 15 Most Carried 15 | 2 13 15 15 Average Carried 11 | 1 8 14 14 Final Capacity 15 | 8 15 15 15 Final Carried 15 | 2 13 15 12 Class Distribution -------------------- 89% | Mutant 10% | Scavenger-Mutant Dominant Class ---------------- Mutant | -10/Materials Mutant | -10/Mines Mutant | -9/Materials Resources | -11 -10 -10 -9 ----------- Run | Yrd Mat Min Mat Matter Collected 973 | 270 297 82 324 Remotely 65 | 65 . . . Salvage Created 1565 | 80 436 263 786 Parts 87 | 3 29 11 44 Haulers Intercepted 2 | . . . 2 Recyclers Shooed . | . . . . Parts Field Recycled . | . . . . Retrieved Matter . | . . . . Parts Self-Destructed . | . . . . Prevented . | . . . . Parts Restored . | . . . . Kills | -11 -10 -10 -9 ------- Run | Yrd Mat Min Mat Combat Hostiles Destroyed 35 | . 12 6 17 Melee 13 | . . 3 10 Guns 4 | . 4 . . Cannons 17 | . 7 3 7 AOE 1 | . 1 . . Classes Destroyed 13 | 1 6 2 4 Worker 4 | . 1 . 3 Builder 2 | . 1 . 1 Tunneler 1 | . 1 . . Hauler 2 | . . . 2 Recycler 4 | 1 . 1 2 Mechanic 1 | . . . 1 Operator 1 | . . . 1 Watcher 3 | . 2 . 1 Swarmer 13 | . 6 . 7 Grunt 14 | . 6 2 6 Brawler 2 | . . . 2 Sentry 4 | . . 2 2 Assembled 2 | . . 2 . Best Kill Streak 6 | 1 4 2 6 Combat Bots Only 4 | . 3 2 4 Max Kills in Single Turn 2 | 1 2 1 1 Gunslinging . | . . . . Exploded 1 | . 1 . . Melee 1 | . . 1 1 Uniques/NPCs Destroyed . | . . . . Combat | -11 -10 -10 -9 -------- Run | Yrd Mat Min Mat Hostile Shots Fired 317 | . 93 22 202 Missed 80 | . 30 6 44 Hits 237 | . 63 16 158 Projectile 237 | . 63 16 158 Critical Strikes 5 | . . 1 4 Part Disruptions 1 | . . 1 . Damage Taken 2428 | . 676 230 1522 Core 514 | . 46 60 408 Absorbed by Shields . | . . . . Core Remaining (%) 78 | 100 . 57 . Volleys Fired 115 | 1 53 10 51 Largest 2 | 2 2 2 1 Hottest 110 | 90 110 66 33 Shots Fired 167 | 2 101 13 51 Gun 58 | 2 56 . . Cannon 109 | . 45 13 51 Launcher . | . . . . Special . | . . . . Kinetic 102 | . 38 13 51 Thermal 51 | 1 50 . . Explosive . | . . . . Electromagnetic 14 | 1 13 . . Robot Hit Streak 8 | 2 8 7 4 Robot Miss Streak 7 | . 7 2 4 Penetration Max . | . . . . Secondary Targets . | . . . . Shots Hit Robots 130 | 2 50 14 64 Core Hits 57 | 2 22 7 26 Critical Kills . | . . . . Critical Parts Destroyed . | . . . . Critical Strikes 11 | . 3 . 8 Burn 2 | . 2 . . Blast 3 | . 1 . 2 Sever 6 | . . . 6 Melee Attacks 92 | . . 37 55 Impact . | . . . . Slashing 92 | . . 37 55 Piercing . | . . . . Sneak Attacks 9 | . . 1 8 Combat Hostiles . | . . . . Follow-up Attacks . | . . . . Damage Inflicted 3328 | 24 873 417 2014 Guns 459 | 24 435 . . Cannons 1161 | . 382 184 595 Explosions 56 | . 56 . . Melee 1652 | . . 233 1419 Ramming . | . . . . Kinetic 1073 | . 294 184 595 Thermal 451 | 12 439 . . Explosive . | . . . . Electromagnetic 152 | 12 140 . . Impact . | . . . . Slashing 1652 | . . 233 1419 Piercing . | . . . . Highest Corruption . | . . . . Average Corruption . | . . . . Corruption Purged . | . . . . Corruption Blocked . | . . . . Overload Shots . | . . . . Overflow Damage 133 | . 9 42 82 Projectiles 9 | . 9 . . Explosions . | . . . . Melee 124 | . . 42 82 Knockbacks 6 | . 3 . 3 Impact . | . . . . Kinetic 5 | . 3 . 2 Secondary 1 | . . . 1 Self-Inflicted Damage . | . . . . Shots . | . . . . Rammed . | . . . . Targets Rammed . | . . . . Kicked . | . . . . Crushed . | . . . . Highest Temperature 297 | 30 297 27 22 Average Temperature 71 | 18 81 13 4 Received Heat Transfer 688 | . 231 112 345 Siege Activations . | . . . . Martial Activations . | . . . . Shielding Activations . | . . . . Robots Disrupted . | . . . . Combat Hostiles . | . . . . Robots Corrupted . | . . . . Combat Hostiles . | . . . . Parts Fried . | . . . . Impact Corruptions . | . . . . Robots Melted . | . . . . Combat Hostiles . | . . . . Parts Melted 2 | . 2 . . Heat Transferred 1236 | 37 1199 . . Parts Sabotaged . | . . . . Parts Stolen . | . . . . Parts Stripped . | . . . . Power Chain Reactions 1 | . 1 . . Alert | -11 -10 -10 -9 ------- Run | Yrd Mat Min Mat Maximum Alert Level . | . . . . Low Security (%) 100 | 100 100 100 100 Level 1 . | . . . . Level 2 . | . . . . Level 3 . | . . . . Level 4 . | . . . . Level 5 . | . . . . High Security . | . . . . Max Security . | . . . . Peak Influence 174 | 5 76 42 174 Initial 25 | . . 25 . Average 22 | . 13 2 66 Influence Increases 987 | 5 381 92 509 Destroy 0b10 Robot/C 660 | . 240 80 340 Destroy 0b10 Robot/NC 90 | 5 25 5 55 Destroy Leader 130 | . 54 . 76 Successful Hack 38 | . 38 . . Disable Machine 15 | . . . 15 Destroy Structure 24 | . 9 7 8 Lose Combat Pursuer 30 | . 15 . 15 Influence Decreases 876 | 5 315 158 398 Entered New Map 41 | . . 41 . Time Decay 700 | 5 290 117 288 Lost Part 135 | . 25 . 110 Squads Dispatched 1 | . . . 1 Investigation . | . . . . Extermination . | . . . . Reinforcement 1 | . . . 1 Assault . | . . . . Garrison . | . . . . Intercept . | . . . . Searches Triggered . | . . . . Construction Impeded . | . . . . Haulers Reinforced . | . . . . Active Scanning Responses . | . . . . Cargo Convoy Interrupts . | . . . . Stealth | -11 -10 -10 -9 --------- Run | Yrd Mat Min Mat Distress Signals 2 | . . 1 1 Communications Jammed . | . . . . Distress Signals . | . . . . Times Spotted 54 | . 16 6 32 Peak Tracking Total 6 | . 3 2 6 Tactical Retreats 3 | . 1 1 1 Traps | -11 -10 -10 -9 ------- Run | Yrd Mat Min Mat Traps Triggered 3 | . 2 1 . Indirectly . | . . . . Trap Hack Attempts . | . . . . Triggered . | . . . . Disarmed . | . . . . Reprogrammed 3 | . 3 . . Reused . | . . . . Traps Extracted . | . . . . Installed . | . . . . Triggered . | . . . . Machines | -11 -10 -10 -9 ---------- Run | Yrd Mat Min Mat Machines Disabled 2 | . . 1 1 Max in Single Turn 1 | . . 1 1 Machines Repaired . | . . . . Machines Dismantled . | . . . . Machines Sabotaged . | . . . . Overloaded Fab Kills . | . . . . Hacking | -11 -10 -10 -9 --------- Run | Yrd Mat Min Mat Machines Accessed 12 | . 8 2 2 Terminals 9 | . 7 . 2 Fabricators . | . . . . Repair Stations 1 | . 1 . . Recycling Units . | . . . . Scanalyzers . | . . . . Garrison Access . | . . . . Total Hacks 35 | . 31 2 2 Successful 22 | . 19 2 1 Failed 13 | . 12 . 1 Catastrophic 2 | . 2 . . Database Lockouts . | . . . . Manual 22 | . 20 . 2 Terminals 31 | . 29 . 2 Fabricators . | . . . . Repair Stations 2 | . 2 . . Recycling Units . | . . . . Scanalyzers . | . . . . Garrison Access . | . . . . Terminal Hacks 11 | . 9 2 . Open Door 2 | . . 2 . Branch Access Points 1 | . 1 . . Terminal Index 1 | . 1 . . Alert Level 1 | . 1 . . Locate Traps 1 | . 1 . . Reprogram Traps 1 | . 1 . . Transport Status 1 | . 1 . . Hauler Manifests 1 | . 1 . . Zone Layout 2 | . 2 . . Fabricator Hacks . | . . . . Repair Station Hacks 1 | . 1 . . Refit 1 | . 1 . . Recycling Unit Hacks . | . . . . Scanalyzer . | . . . . Garrison Access Hacks . | . . . . Unauthorized Hacks 9 | . 8 . 1 Terminals 9 | . 8 . 1 Botnet 7 | . 6 . 1 Operators 2 | . 2 . . Fabricators . | . . . . Repair Stations . | . . . . Recycling Units . | . . . . Scanalyzers . | . . . . Garrison Access . | . . . . Data Cores Recovered . | . . . . Used . | . . . . Hacking Detections 9 | . 7 . 2 Full Trace Events 1 | . 1 . . Feedback Events . | . . . . Feedback Blocked . | . . . . Robot Schematics Acquired . | . . . . Robots Built . | . . . . Authchips . | . . . . Time . | . . . . Total Robot Build Rating . | . . . . Part Schematics Acquired . | . . . . Parts Built . | . . . . Authchips . | . . . . Time . | . . . . Total Part Build Rating . | . . . . Part Studies Acquired . | . . . . Parts Repaired . | . . . . Time . | . . . . Parts Recycled . | . . . . Recycled Matter . | . . . . Retrieved Matter . | . . . . Retrieved Components . | . . . . Parts Scanalyzed . | . . . . Part Schematics Acquired . | . . . . Parts Damaged . | . . . . Bothacking | -11 -10 -10 -9 ------------ Run | Yrd Mat Min Mat Used RIF Installer . | . . . . Robots Hacked . | . . . . Non-combat . | . . . . Combat . | . . . . Robot Hacks Applied . | . . . . Relay Couplers Released . | . . . . Fabnet Peak Effective % . | . . . . Robots Rewired . | . . . . Allies Hacked . | . . . . Hacks Repelled . | . . . . Allies | -11 -10 -10 -9 -------- Run | Yrd Mat Min Mat Total Allies . | . . . . Largest Group . | . . . . Highest-Rated Group . | . . . . Highest-Rated Ally . | . . . . Total Orders . | . . . . Ally Attacks . | . . . . Total Damage . | . . . . Kills . | . . . . Allies Corrupted . | . . . . Allies Melted . | . . . . Intel | -11 -10 -10 -9 ------- Run | Yrd Mat Min Mat Active Infowar (turns) 3669 | . 991 1515 1163 Terrain 1148 | . . . 1148 Machine Analysis 3669 | . 991 1515 1163 Robot Analysis Total . | . . . . Derelict Logs Recovered 2 | . . 2 . Drone Launches . | . . . . Drone Recoveries . | . . . . Exploration | -11 -10 -10 -9 ------------- Run | Yrd Mat Min Mat Turns Passed 4908 | 89 2141 1515 1163 Spaces Moved 2514 | 48 1163 832 471 Core 6 | 2 . . 4 Treads 2508 | 46 1163 832 467 Legs . | . . . . Wheels . | . . . . Hover . | . . . . Flight . | . . . . Fastest Speed 50 | 50 160 160 160 Average Speed 162 | 155 160 163 166 Slowest Speed 500 | 160 160 240 500 Overloaded Moves . | . . . . Propulsion Burnouts . | . . . . Robots Hopped . | . . . . Potential Cave-ins . | . . . . Cave-ins Triggered . | . . . . Exploration Rate (%) 61 | 3 98 98 45 Regions Visited 3 Branch Regions 1 Pre-discovered Areas . | . . . . Known Exits Taken 1 | . 1 . . Unknown Exits Taken 2 | 1 . 1 . Scrap Searched 1 | . . 1 . Spaces Dug 11 | . 2 7 2 Terrain Destroyed 19 | . 6 7 6 Melee 9 | . . 7 2 Projectile 7 | . 3 . 4 AOE 3 | . 3 . . Terrain Rammed . | . . . . Walls Destroyed . | . . . . Machines Disabled . | . . . . Actions | -11 -10 -10 -9 --------- Run | Yrd Mat Min Mat Total 3027 | 57 1335 923 712 Wait 245 | . 96 35 114 Move 2511 | 47 1162 831 471 Hop . | . . . . Pick Up 17 | 2 8 4 3 Fast Attach 10 | 7 2 . 1 Attach 8 | . 2 . 6 Detach . | . . . . Swap 23 | . 12 3 8 Drop 6 | . . 3 3 Fire 115 | 1 53 10 51 Melee 92 | . . 37 55 Ram . | . . . . Kick . | . . . . Crush . | . . . . Escape Stasis . | . . . . Rewire . | . . . . Trap . | . . . . Miscellaneous . | . . . . Route ------- -11/Scrapyard -10/Materials (discovered 4 exits: *Mat x3 / *Min) -10/Mines (discovered 3 exits: *Mat x2 / [*Sub]) -9/Materials (discovered 3 exits: [*Mat] / [*Sto x2]) History --------- Turn | Location | Event 12 | -11/Scrapyard | Discovered new exit (range 16) 90 | -11/Scrapyard | Entered Materials 303 | -10/Materials | Build established: Mutant 591 | -10/Materials | Discovered new exit (range 13) 777 | -10/Materials | Discovered new exit (range 16) 784 | -10/Materials | Identified exit to Mines 890 | -10/Materials | Derelicts attacked the area 1467 | -10/Materials | Discovered new exit (range 10) 2231 | -10/Materials | Entered Mines 2239 | -10/Mines | Found the Drone Emporium 2246 | -10/Mines | Found Prototype Device 2312 | -10/Mines | Learned Materials terminal intel 2335 | -10/Mines | Learned Materials stockpile data 2553 | -10/Mines | A weapon hastily lodged in a ceiling crevice suddenly fell to the ground 2608 | -10/Mines | Met a Derelict who couldn't figure out how to use a Trap Extractor 2731 | -10/Mines | Excavation squad dispatched 2731 | -10/Mines | A large section of the Mines collapsed 2855 | -10/Mines | Discovered new exit (range 16) 3042 | -10/Mines | Discovered new exit (range 6) 3353 | -10/Mines | Discovered new exit (range 6) 3746 | -10/Mines | Entered Materials 3746 | -9/Materials | Evolved 2 slots: Propulsion x1, Utility x1 3748 | -9/Materials | Loaded intel: 10 terminal locations 3991 | -9/Materials | Discovered new exit (range 13) 4230 | -9/Materials | Discovered new exit (range 13) 4263 | -9/Materials | Build established: Scavenger-Mutant 4512 | -9/Materials | Discovered new exit (range 4) 4576 | -9/Materials | Build established: Mutant 4753 | -9/Materials | Lost 4 parts (1p2n1w) 4880 | -9/Materials | Core integrity fell below 50% 4890 | -9/Materials | Core integrity fell below 20% 4909 | -9/Materials | Destroyed by Y-45 Defender with Beam Rifle Last Messages --------------- 04773_ Acquired 1 matter. 04831_ K-01 Serf cleans the Terminal. 04831_ Connecting with Terminal... >>Trojan(Botnet) Trojan loaded successfully. Testing... Terminal linked with 0 systems. Awaiting botnet instructions. 04834_ Sneak attack on O-16 Technician. 04834_ Destroyed Hover Unit. 04834_ O-16 Technician destroyed. 04835_ K-01 Serf collects debris. 04864_ K-01 Serf cleans the Terminal. 04869_ Lgt. Treads destroyed. 04891_ Ion Engine destroyed. 04895_ S-10 Pest destroyed. 04897_ Y-45 Defender Lgt. Armor Plating severed. 04900_ Y-45 Defender Lgt. Treads severed. 04903_ Critical hit (Burn: +37). 04903_ Terrain Scanner destroyed. Map ----- +----------------------------------------------------+ | | | | | | | | | | | | | | | | | ####??#??????????????????????????????????????????? | | #????????????????????????????????????????????? | | #????????????????????????????????????????????? | | #???##?????? ?????????"""????????????????????? | | #?????""??????????""??"""????#????#??????????? | | ##???#????????????"T??"""???#????????????????? | | ##???#????????????""?????????????????????????? | | #?#??#"?? ???????????????????????#???????????? | | ##??#?????? ??????####+#####????????#????????? | | = #??#?????? ???????# #################??? | | +#############+######## ?? | | % [%* ?? | | % % T +? | | %=[ %= s ^ #? | | ############+######## * s ^ #? | | =!#*%= **#? ????## =s ###"/####### ?? | | %%#%"""==# """ #??#####Y##### ??????????? | | *%/=""" # """"" #??# @%= # |! +???????? | | ==#!""" # """""??#?# """ """ # |! #?#?????? | | % #=""" # """""????# """ """ # """ #???????? | | *%# # ? """???#?# """ """ # """ ] ""#???????? | | %=########?????? ????# # """ T"#???????? | | # # ??????????# # ""#???????? | | # # ?? ?????# [ # #???????? | | / #??#????????# ##### #####???????? | | %# """ #?#?#????#???##########?????#???????????? | | %# """ ##?#?????????????#??????????????????????? | | % # """ #??? ??????????#??#?#???????????????????? | | ########???"""?"""???????????#?????????????????? | | #?#???#????"""?"""?????????????????????????????? | | #??##?#????"""?"""?????????????????????????????? | | ##??????#????? ????????????????????????????????? | | #?????#???? ???????????????????????????????????? | | #???###???? ???????????"T"?????????????????????? | | ##?????????????????????????????????????????????? | | #############+########??????????"""???????????? | | ?????????"R"???????????? | | ?????????"?"???????????? | | ???????????????????????? | | ##############+####???????????????"""?????????? | | ##???###??#????????????????????????"""?????????? | | # ? #?????[?????????????????????"""?????????? | +----------------------------------------------------+ Best States ------------- Heat Dissipation 28 Energy Generation 18 Energy Capacity 250 Matter Stores 300 Matter Capacity 300 Sight Range 16 Terrain Scan Range 14 Terrain Scan Density 10 Armor Coverage 150 Evasion (%) 40 Recoil Reduction 3 Item Schematics ----------------- None Robot Schematics ------------------ None Fabricated ------------ Nothing Repaired ---------- Nothing Studied --------- None Alien Tech Used ----------------- None Achievements -------------- Quantum Hacking Challenges ------------ None Game ------ Seed ChromionTerrabombSource Manual? 0 Play Time 00:25:27 Cumulative 56.9 hours Start 2026.04.12 @ 19:04:37 End 2026.04.12 @ 19:29:50 Sessions 1 Manual Loads 0 Difficulty Rogue Special Mode None Game No. 96 Rogue 96 Adventurer 0 Explorer 0 Win Type - Total 0 Types 0/0/0/0/0/0/0/0/0/0 Lore% 20 Gallery% 29 Achievement% 24 Wizard Run 0 Options --------- Layout 0 ASCII 0 Keyboard 0 Movement Mouse Keybinds 0 Fullscreen 1 Font 24/Smallcaps Map View 38x25 Zoom Use 98% Tactical HUD 1 Map Filters NONE Filters NONE Steam 1 RUN: b951639c-421a-4e23-9dc2-c83aa3ce93e6